bitfinex/quotes_ETHUSD_20250708
["timestamp","ask_amount","ask_price","bid_price","bid_amount"]
[1751937119272,11.76299022,2538.8,2538.7,1.7029563]
[1751937119472,2.56279022,2538.8,2538.7,1.7029563]
[1751937119693,1.21332276,2538.8,2538.7,1.7029563]
[1751937125081,0.61032276,2538.8,2538.7,1.7029563]
[1751937125383,1.21332276,2538.8,2538.7,1.7029563]
[1751937130120,1.21232276,2538.8,2538.7,1.7029563]
[1751937130446,1.21218341,2538.8,2538.7,1.7029563]
[1751937132946,1.2121875,2538.8,2538.7,1.7029563]
[1751937135753,1.2121875,2538.8,2538.7,0.0428563]
[1751937137953,5.15105625,2538.8,2538.7,0.0428563]
[1751937138157,6.54948655,2538.8,2538.7,0.0428563]
[1751937138454,7.94298655,2538.8,2538.7,0.0428563]
[1751937138762,7.89378344,2538.8,2538.7,0.0428563]
[1751937138918,23.10637381,2538.8,2538.7,0.0428563]
[1751937139121,24.85437228,2538.8,2538.7,0.0428563]
[1751937142325,24.85310589,2538.8,2538.7,0.0428563]
[1751937142933,24.85295826,2538.8,2538.7,0.0428563]
[1751937143338,23.10564583,2538.8,2538.7,0.0428563]
[1751937143551,24.85295826,2538.8,2538.7,0.0428563]
[1751937143751,23.10564583,2538.8,2538.7,0.0428563]
[1751937144458,23.10560189,2538.8,2538.7,0.0428563]
[1751937144652,17.89301152,2538.8,2538.7,0.0428563]
[1751937146329,17.29101152,2538.8,2538.7,0.0428563]
[1751937146525,19.37101152,2538.8,2538.7,0.0428563]
[1751937148254,14.03864277,2538.8,2538.7,0.0428563]
[1751937148957,12.64079282,2538.8,2538.7,0.0428563]
[1751937149555,0.56079282,2538.8,2538.7,1.6403563]
[1751937149757,0.36399282,2538.8,2538.7,1.6403563]
[1751937149959,0.36399282,2538.9,2538.7,5.7761802]
[1751937150163,0.603,2539.1,2538.9,1.6248]
[1751937150457,0.3640987,2539.0,2538.9,1.6248]
[1751937150962,0.3650987,2539.1,2538.9,1.6248]
[1751937151262,0.001,2539.1,2538.9,1.6248]
[1751937151456,0.3650637,2539.1,2538.9,1.6248]
[1751937151659,0.3650637,2539.1,2539.0,0.27933347]
[1751937151660,0.001,2539.1,2539.0,0.27933347]
[1751937154275,0.001,2539.1,2539.0,1.85543347]
[1751937154772,0.001,2539.1,2539.0,5.79399195]
[1751937155156,0.001,2539.1,2539.0,5.81392444]
[1751937157775,0.001,2539.1,2539.0,5.79399195]
[1751937158182,0.001,2539.1,2539.0,5.79599195]
[1751937158387,0.001,2539.1,2539.0,6.39799195]
[1751937158676,0.001,2539.1,2539.0,5.79599195]
[1751937160086,0.001,2539.1,2539.0,21.57851481]
[1751937160253,0.001,2539.1,2539.0,21.55858232]
[1751937163892,0.001,2539.1,2539.0,1.85743347]
[1751937164463,0.001,2539.1,2539.0,0.002]
[1751937190509,0.001,2539.1,2539.0,5.61079097]
[1751937190916,0.001,2539.1,2539.0,6.19185848]
[1751937222222,0.001,2539.1,2539.0,21.95444885]
[1751937229915,0.001,2539.1,2539.0,21.95344885]
[1751937230353,0.001,2539.1,2539.0,24.70954382]
[1751937240649,1e-08,2539.1,2539.0,34.56954382]
[1751937240828,1e-08,2539.1,2539.0,19.49695345]
[1751937243233,1e-08,2539.1,2539.0,17.84665345]
[1751937243856,1e-08,2539.1,2539.0,16.69665345]
[1751937244262,1e-08,2539.1,2539.0,17.29665345]
[1751937244560,1e-08,2539.1,2539.0,16.69665345]
[1751937244735,1e-08,2539.1,2539.0,17.29665345]
[1751937244934,1e-08,2539.1,2539.0,16.69665345]
[1751937245137,1e-08,2539.1,2539.0,7.29665345]
[1751937245339,1e-08,2539.1,2539.0,4.54055848]
[1751937250457,1e-08,2539.1,2539.0,3.94055848]
[1751937250661,1e-08,2539.1,2539.0,4.54055848]
[1751937251545,1e-08,2539.1,2539.0,3.94055848]
[1751937251756,1e-08,2539.1,2539.0,4.54055848]
[1751937251956,1e-08,2539.1,2539.0,5.40816501]
[1751937252366,1e-08,2539.1,2539.0,1.46960653]
[1751937252575,1e-08,2539.1,2539.0,0.002]
[1751937252745,1.39350001,2539.1,2539.0,0.002]
[1751937253867,1.75787666,2539.1,2539.0,0.002]
[1751937254085,1.39350001,2539.1,2539.0,0.002]
[1751937257055,1.44273005,2539.1,2539.0,0.002]
[1751937257369,1.39350001,2539.1,2539.0,0.002]
[1751937258083,1.9315826,2539.1,2539.0,0.002]
[1751937258385,1.39350001,2539.1,2539.0,0.002]
[1751937262888,1.59030001,2539.1,2539.0,0.002]
[1751937264690,1e-08,2539.1,2539.0,0.1988]
[1751937264988,1.39350001,2539.1,2539.0,0.002]
[1751937266592,1e-08,2539.1,2539.0,0.002]
[1751937266821,1e-08,2539.1,2539.0,4.92730155]
[1751937267293,1e-08,2539.1,2539.0,7.73120155]
[1751937267918,1e-08,2539.1,2539.0,7.18120155]
[1751937274227,1e-08,2539.1,2539.0,7.20113404]
[1751937275136,1e-08,2539.1,2539.0,7.18120155]
[1751937275898,1e-08,2539.1,2539.0,7.73120155]
[1751937276812,1e-08,2539.1,2539.0,17.73120155]
[1751937279527,1e-08,2539.1,2539.0,17.13120155]
[1751937279729,1e-08,2539.1,2539.0,19.19820155]
[1751937289567,0.001,2540.0,2539.9,3.93716288]
[1751937289737,0.001,2540.0,2539.9,0.599]
[1751937290064,1.3945,2540.0,2539.9,4.53616288]
[1751937290535,0.001,2540.0,2539.9,3.93716288]
[1751937292561,0.001,2540.0,2539.8,0.599]
[1751937292766,1.3935,2539.9,2539.8,0.599]
[1751937293083,1.3935,2539.9,2539.5,3.93771908]
[1751937293084,1.3935,2539.9,2539.6,0.599]
[1751937293369,1.3935,2539.9,2539.6,3.93759853]
[1751937296270,1.3935,2539.9,2539.5,4.53670428]
[1751937296663,1.3935,2539.9,2539.6,3.93751424]
[1751937297469,1.3935,2539.9,2539.5,4.53670535]
[1751937297766,1.3935,2539.9,2539.6,3.93761883]
[1751937297966,1.3935,2539.9,2539.5,0.599]
[1751937298187,1.3935,2539.9,2539.4,0.599]
[1751937298596,1.3935,2539.9,2539.5,3.93778261]
[1751937299070,1.3935,2539.9,2539.6,3.95752789]
[1751937299468,1.3935,2539.9,2539.6,0.21670768]
[1751937300256,1.3935,2539.9,2539.6,4.15432124]
[1751937300564,1.3935,2539.9,2539.6,0.21670768]
[1751937301794,1.3935,2539.9,2539.6,0.1968]
[1751937302482,0.001,2540.0,2539.0,0.002]
[1751937302483,1.3935,2539.7,2539.0,0.002]
[1751937302681,0.04921647,2539.8,2539.0,0.002]
[1751937302682,1.3935,2539.5,2539.0,0.002]
[1751937302886,1.3935,2539.5,2539.0,0.02192321]
[1751937303072,0.04922422,2539.4,2539.0,0.002]
[1751937303280,1.3935,2539.3,2539.0,0.002]
[1751937303880,0.53805177,2539.3,2539.0,0.002]
[1751937304197,1.3935,2539.4,2539.0,0.002]
[1751937304401,1.3935,2539.2,2539.0,0.002]
[1751937307298,1.44273004,2539.1,2539.0,0.002]
[1751937318205,0.1968,2539.3,2539.0,0.002]
[1751937322486,1.3935,2539.1,2539.0,0.002]
[1751937322688,1.5903,2539.1,2539.0,0.002]
[1751937326491,0.1968,2539.1,2539.0,0.002]
[1751937329318,1.5903,2539.1,2539.0,0.002]
[1751937329497,12.00292511,2539.1,2539.0,0.002]
[1751937329811,1.95369507,2539.1,2539.0,0.002]
[1751937330000,1.5903,2539.1,2539.0,0.002]
[1751937330314,11.95371996,2539.1,2539.0,0.002]
[1751937331613,13.34986093,2539.1,2539.0,0.002]
[1751937331795,14.01771996,2539.1,2539.0,0.002]
[1751937332314,15.41478165,2539.1,2539.0,0.002]
[1751937332828,15.4146389,2539.1,2539.0,0.002]
[1751937333000,15.4156389,2539.1,2539.0,0.002]
[1751937333894,19.35404227,2539.1,2539.0,0.002]
[1751937334402,15.4156389,2539.1,2539.0,0.002]
[1751937335213,15.41597827,2539.1,2539.0,0.002]
[1751937338233,3.35197827,2539.1,2539.0,0.002]
[1751937338521,1.16055933,2539.1,2539.0,0.002]
[1751937338839,0.001,2539.1,2539.0,0.002]
[1751937339137,0.001,2539.1,2539.0,0.1988]
[1751937340322,0.05023004,2539.1,2539.0,0.002]
[1751937340527,22.6640604,2539.1,2539.0,0.002]
[1751937340730,22.61483036,2539.1,2539.0,0.002]
[1751937341325,24.01113806,2539.1,2539.0,0.002]
[1751937341494,22.61483036,2539.1,2539.0,0.002]
[1751937341695,24.61020177,2539.1,2539.0,0.002]
[1751937342632,13.39520547,2539.1,2539.0,0.002]
[1751937342801,13.75356305,2539.1,2539.0,0.002]
[1751937344814,12.35719164,2539.1,2539.0,0.002]
[1751937345020,11.75819164,2539.1,2539.0,0.002]
[1751937345328,1.16049164,2539.1,2539.0,0.002]
[1751937345528,1.16081692,2539.1,2539.0,0.002]
[1751937345731,1.16084591,2539.1,2539.0,0.002]
[1751937345932,0.1978,2539.1,2539.0,0.002]
[1751937346308,0.7968,2539.1,2539.0,0.002]
[1751937346501,1.16081925,2539.1,2539.0,0.002]
[1751937350507,0.56181925,2539.1,2539.0,0.002]
[1751937354553,0.61104929,2539.1,2539.0,0.002]
[1751937355830,0.56181925,2539.1,2539.0,0.002]
[1751937356210,0.56181925,2539.1,2539.0,1.5473]
[1751937356418,0.36501925,2539.1,2539.0,1.5473]
[1751937356719,0.001,2539.1,2539.0,1.5473]
[1751937358645,0.001,2539.1,2539.0,0.002]
[1751937361457,0.1978,2539.1,2539.0,0.002]
[1751937362017,0.24703004,2539.1,2539.0,0.002]
[1751937362317,0.61106702,2539.1,2539.0,0.002]
[1751937362641,1.26524434,2539.1,2539.0,0.002]
[1751937362845,5.20364771,2539.1,2539.0,0.002]
[1751937363029,17.99514812,2539.1,2539.0,0.002]
[1751937363221,17.94591808,2539.1,2539.0,0.002]
[1751937364633,20.00891808,2539.1,2539.0,0.002]
[1751937365754,19.6448811,2539.1,2539.0,0.002]
[1751937365957,20.0089138,2539.1,2539.0,0.002]
[1751937366148,20.5589138,2539.1,2539.0,0.002]
[1751937367262,22.30506248,2539.1,2539.0,0.002]
[1751937370261,20.5589138,2539.1,2539.0,0.002]
[1751937376070,20.0089138,2539.1,2539.0,0.002]
[1751937376255,25.22150417,2539.1,2539.0,0.002]
[1751937377372,20.0089138,2539.1,2539.0,0.002]
[1751937377572,13.21301043,2539.1,2539.0,0.002]
[1751937377770,10.5618327,2539.1,2539.0,0.002]
[1751937378067,11.1608327,2539.1,2539.0,0.002]
[1751937378269,10.5618327,2539.1,2539.0,0.002]
[1751937378475,0.5618327,2539.1,2539.0,0.002]
[1751937378843,0.7968,2539.1,2539.0,0.002]
[1751937379672,1.16040316,2539.1,2539.0,0.002]
[1751937380078,0.7968,2539.1,2539.0,0.002]
[1751937380760,0.1978,2539.1,2539.0,0.002]
[1751937380973,0.7968,2539.1,2539.0,0.002]
[1751937384981,0.1978,2539.1,2539.0,0.002]
[1751937385286,0.7968,2539.1,2539.0,0.002]
[1751937386281,0.1978,2539.1,2539.0,0.002]
[1751937386458,0.001,2539.1,2539.0,0.002]
[1751937386653,0.001,2539.1,2539.0,2.17547611]
[1751937387366,0.001,2539.1,2539.0,1.6063]
[1751937393980,0.001,2539.1,2539.0,5.54485848]
[1751937394295,0.001,2539.1,2539.0,5.76159097]
[1751937395175,0.001,2539.1,2539.0,1.8031]
[1751937395374,0.001,2539.1,2539.0,5.74165848]
[1751937396387,0.001,2539.1,2539.0,6.70970531]
[1751937398794,0.001,2539.1,2539.0,2.77114683]
[1751937399366,0.001,2539.1,2539.0,6.70970531]
[1751937400815,0.001,2539.1,2539.0,2.77114683]
[1751937400966,0.001,2539.1,2539.0,0.002]
[1751937402015,3.93940337,2539.1,2539.0,0.002]
[1751937403403,4.35230881,2539.1,2539.0,0.002]
[1751937406175,7.14393693,2539.1,2539.0,0.002]
[1751937406496,17.14393693,2539.1,2539.0,0.002]
[1751937406696,17.09470689,2539.1,2539.0,0.002]
[1751937407600,17.64470689,2539.1,2539.0,0.002]
[1751937407800,19.39022921,2539.1,2539.0,0.002]
[1751937408015,13.93886875,2538.8,2538.7,0.0428563]
[1751937408174,22.90576264,2538.8,2538.7,0.0428563]
[1751937408377,23.96385095,2538.8,2538.7,0.0428563]
[1751937408675,22.90576264,2538.8,2538.7,0.0428563]
[1751937408891,17.09417227,2538.8,2538.7,0.0428563]
[1751937409175,19.15617227,2538.8,2538.7,0.0428563]
[1751937411414,13.15530352,2538.8,2538.7,0.0428563]
[1751937411712,15.21730352,2538.8,2538.7,0.0428563]
[1751937412109,11.7571754,2538.8,2538.7,0.0428563]
[1751937412308,12.4256754,2538.8,2538.7,0.0428563]
[1751937412510,12.42536067,2538.8,2538.7,0.0428563]
[1751937412709,16.36422942,2538.8,2538.7,0.0428563]
[1751937412909,14.90122942,2538.8,2538.7,0.0428563]
[1751937413080,10.96236067,2538.8,2538.7,0.0428563]
[1751937415511,10.36336067,2538.8,2538.7,0.0428563]
[1751937415708,0.56016067,2538.8,2538.7,0.0428563]
[1751937415920,0.7958,2538.8,2538.7,0.0428563]
[1751937417286,0.1968,2538.8,2538.7,0.0428563]
[1751937417488,0.7958,2538.8,2538.7,0.0428563]
[1751937419626,0.1968,2538.8,2538.7,0.0428563]
[1751937419823,0.7958,2538.8,2538.7,0.0428563]
[1751937422326,0.001,2539.1,2538.7,0.0428563]
[1751937422623,0.7958,2539.0,2538.8,1.5582]
[1751937422792,2.1893,2539.0,2538.7,0.0428563]
[1751937422993,0.04923392,2538.9,2538.7,0.0428563]
[1751937423189,6.80289037,2538.8,2538.7,0.0428563]
[1751937423388,0.60953989,2538.8,2538.7,0.0428563]
[1751937423593,0.7958,2538.8,2538.7,0.0428563]
[1751937423819,0.599,2538.8,2538.7,0.0428563]
[1751937424321,0.1968,2539.0,2538.7,0.0428563]
[1751937424533,0.36361257,2538.9,2538.7,0.0428563]
[1751937424899,0.96261257,2538.9,2538.7,0.0428563]
[1751937425094,0.90854818,2538.9,2538.7,0.0428563]
[1751937425294,0.56043377,2538.8,2538.7,0.0428563]
[1751937426215,0.56052986,2538.8,2538.7,0.0428563]
[1751937426727,0.60976571,2538.8,2538.7,0.0428563]
[1751937434947,0.61055439,2538.8,2538.7,0.0428563]
[1751937436545,0.61055439,2538.8,2538.7,1.7072563]
[1751937436546,0.96351854,2538.8,2538.7,1.7072563]
[1751937437348,0.36451854,2538.8,2538.7,1.7072563]
[1751937437716,0.36451854,2538.8,2538.7,1.9040563]
[1751937440924,0.3649091,2538.8,2538.7,1.9040563]
[1751937442067,0.3649091,2538.8,2538.7,0.2396563]
[1751937445360,0.36513857,2538.8,2538.7,0.2396563]
[1751937446857,0.36515306,2538.8,2538.7,0.2396563]
[1751937448159,4.35325766,2538.8,2538.7,0.0428563]
[1751937449273,14.35325766,2538.8,2538.7,0.0428563]
[1751937449466,15.70629458,2538.8,2538.7,0.0428563]
[1751937450972,15.70630889,2538.8,2538.7,0.0428563]
[1751937451345,22.31239926,2538.8,2538.7,0.0428563]
[1751937451942,24.06533048,2538.8,2538.7,0.0428563]
[1751937452379,22.31239926,2538.8,2538.7,0.0428563]
[1751937452681,24.06533048,2538.8,2538.7,0.0428563]
[1751937452876,24.06518779,2538.8,2538.7,0.0428563]
[1751937453378,22.31225657,2538.8,2538.7,0.0428563]
[1751937453572,24.06518779,2538.8,2538.7,0.0428563]
[1751937454879,22.31225657,2538.8,2538.7,0.0428563]
[1751937455096,13.16079745,2538.8,2538.7,0.0428563]
[1751937455391,12.36629745,2538.8,2538.7,0.0428563]
[1751937455899,16.30497374,2538.8,2538.7,0.0428563]
[1751937456195,17.69847374,2538.8,2538.7,0.0428563]
[1751937459799,24.66399533,2538.8,2538.7,0.0428563]
[1751937460568,25.21399533,2538.8,2538.7,0.0428563]
[1751937460769,23.46106411,2538.8,2538.7,0.0428563]
[1751937461380,25.2107786,2538.8,2538.7,0.0428563]
[1751937462891,25.50505984,2538.8,2538.7,0.0428563]
[1751937464404,23.75534535,2538.8,2538.7,0.0428563]
[1751937464604,25.50491684,2538.8,2538.7,0.0428563]
[1751937465315,25.50491684,2538.8,2538.2,0.0428563]
[1751937465316,10.0,2538.3,2538.2,0.0428563]
[1751937465627,17.76774963,2538.3,2538.2,0.0428563]
[1751937465917,17.76774963,2538.3,2537.9,0.002]
[1751937466134,3.93995508,2538.1,2538.0,0.2724865]
[1751937466414,0.96383222,2538.1,2538.0,0.2724865]
[1751937466574,2.36175087,2538.1,2538.0,0.2724865]
[1751937467206,1.76275087,2538.1,2538.0,0.2724865]
[1751937467509,10.96383222,2538.1,2538.0,0.2724865]
[1751937468689,0.96383222,2538.1,2538.0,0.2724865]
[1751937469499,0.36483222,2538.1,2538.0,0.2724865]
[1751937469678,0.96383222,2538.1,2538.0,0.2724865]
[1751937470085,0.36483222,2538.1,2538.0,0.2724865]
[1751937470285,0.96383222,2538.1,2538.0,0.2724865]
[1751937472311,0.599,2538.1,2538.0,0.2724865]
[1751937473716,1.462,2538.5,2538.1,1.5594]
[1751937473904,0.96291722,2538.4,2538.1,2.13878992]
[1751937474104,0.36397591,2538.3,2538.2,1.5594]
[1751937474410,0.599,2538.3,2538.2,1.5594]
[1751937474798,0.04923779,2538.7,2538.2,1.5594]
[1751937474992,0.36398728,2538.6,2538.2,1.5594]
[1751937475316,10.96298728,2538.6,2538.2,2.33338325]
[1751937475493,0.36398728,2538.5,2538.2,1.7562]
[1751937475700,0.41322895,2538.5,2538.2,1.7562]
[1751937475895,0.36398728,2538.4,2538.2,1.7562]
[1751937476112,0.96298728,2538.4,2538.2,1.7562]
[1751937476290,0.1968,2538.7,2538.2,1.7562]
[1751937476492,0.41340298,2538.6,2538.3,1.5391]
[1751937476689,0.36416325,2538.5,2538.3,1.5391]
[1751937477085,0.96316325,2538.5,2538.3,1.5391]
[1751937477286,0.599,2538.5,2538.3,1.5391]
[1751937478305,0.24603779,2538.7,2538.3,1.5391]
[1751937478506,1.01251546,2538.6,2538.3,1.5391]
[1751937478824,0.36427573,2538.5,2538.3,1.5391]
[1751937479122,0.36427573,2538.5,2538.3,2.2057599]
[1751937479321,0.599,2538.6,2538.3,2.2057599]
[1751937479538,0.24603779,2538.7,2538.3,4.60629652]
[1751937479834,0.36432871,2538.6,2538.4,1.7753]
[1751937479992,0.599,2538.7,2538.4,1.7753]
[1751937480190,0.599,2538.7,2538.4,5.71475658]
[1751937480532,0.36434479,2538.6,2538.5,1.5201]
[1751937481024,0.1968,2538.9,2538.5,1.5201]
[1751937481189,0.36436094,2538.8,2538.7,5.4591239]
[1751937481390,0.001,2539.0,2538.9,1.7169]
[1751937482146,0.001,2539.0,2538.9,5.65561361]
[1751937482622,0.001,2539.0,2538.9,5.67554997]
[1751937482823,0.001,2539.0,2538.9,7.13831173]
[1751937483192,0.001,2539.0,2538.9,7.15824809]
[1751937483392,0.001,2539.0,2538.9,7.13831173]
[1751937483830,0.001,2539.0,2538.9,7.68831173]
[1751937483996,0.001,2539.1,2539.0,16.05645848]
[1751937484199,0.0428563,2539.7,2539.5,3.93764554]
[1751937484403,0.0428563,2539.7,2539.6,1.7372]
[1751937485325,0.0428563,2539.7,2539.6,1.5404]
[1751937486509,0.0428563,2539.7,2539.5,0.1968]
[1751937487130,0.0428563,2539.7,2539.4,1.5102]
[1751937487334,0.09207471,2539.7,2539.4,1.5102]
[1751937488333,0.09307471,2539.7,2539.3,0.1968]
[1751937490048,3.9377887,2539.5,2538.7,1.461]
[1751937490339,0.24602422,2539.4,2538.9,0.1968]
[1751937490535,10.24602422,2539.4,2538.9,0.1968]
[1751937490705,14.55314563,2539.4,2538.9,0.1968]
[1751937490908,10.61518129,2539.4,2538.9,0.1968]
[1751937491231,0.61518129,2539.4,2539.0,1.5019]
[1751937491606,10.61518129,2539.4,2539.0,1.5019]
[1751937492111,0.04922616,2539.3,2539.0,1.5019]
[1751937492311,1.5094468,2539.3,2539.0,1.5019]
[1751937492508,3.93826327,2539.2,2538.8,1.5994]
[1751937492815,0.04923004,2539.1,2538.8,1.5994]
[1751937494805,0.04923004,2539.1,2538.7,0.1968]
[1751937495135,3.98771996,2539.1,2538.6,1.5106]
[1751937495328,0.1968,2539.0,2538.6,1.5106]
[1751937495836,0.1968,2539.0,2538.5,0.1968]
[1751937495837,0.04923392,2538.9,2538.5,0.1968]
[1751937496242,0.04923392,2538.9,2538.4,1.5106]
[1751937496442,0.1968,2538.8,2538.4,1.7074]
[1751937497933,0.04923779,2538.7,2538.4,0.1968]
[1751937508351,0.1968,2538.8,2538.4,5.40939037]
[1751937508662,0.1968,2539.1,2538.6,4.13597682]
[1751937509238,0.1968,2539.1,2538.6,4.15591863]
[1751937509427,0.1968,2539.1,2538.6,0.21674181]
[1751937509627,1.462,2539.3,2539.0,0.1968]
[1751937509822,0.1968,2539.4,2539.0,0.1968]
[1751937510028,0.1968,2539.4,2539.0,4.13528313]
[1751937510226,0.1968,2539.4,2539.1,3.93836982]
[1751937510549,0.001,2539.2,2539.0,0.1968]
[1751937511128,1.549,2539.2,2538.6,2.1965]
[1751937511350,0.04923004,2539.1,2538.8,0.1968]
[1751937511550,0.04923004,2539.1,2538.6,1.5975]
[1751937511733,0.24603004,2539.1,2538.6,0.1968]
[1751937512530,1.5776,2539.0,2538.4,0.002]
[1751937512830,1.5776,2538.8,2538.4,0.002]
[1751937513154,0.24603779,2538.7,2538.4,0.002]
[1751937513826,0.04923779,2538.7,2538.4,0.002]
[1751937514026,0.1968,2538.5,2538.4,0.002]
[1751937515925,1.7909,2538.5,2538.4,0.002]
[1751937516163,7.35741526,2538.5,2538.4,0.002]
[1751937516521,7.30817359,2538.5,2538.4,0.002]
[1751937517342,17.35741526,2538.5,2538.4,0.002]
[1751937517553,17.6722623,2538.5,2538.4,0.002]
[1751937517870,13.73292805,2538.5,2538.4,0.002]
[1751937518557,17.6722623,2538.5,2538.4,0.002]
[1751937519558,18.2722623,2538.5,2538.4,0.002]
[1751937522369,19.67061307,2538.5,2538.4,0.002]
[1751937524539,20.02381307,2538.5,2538.4,1e-08]
[1751937524729,6.04755508,2538.1,2538.0,0.2744865]
[1751937524935,24.81885074,2538.1,2538.0,0.2744865]
[1751937525137,21.6202776,2538.1,2538.0,0.2744865]
[1751937525330,17.25926122,2538.1,2538.0,0.2744865]
[1751937525834,19.32326122,2538.1,2538.0,0.2744865]
[1751937526036,20.90120056,2538.1,2538.0,0.2744865]
[1751937528169,21.45120056,2538.1,2538.0,0.2744865]
[1751937528373,21.08711185,2538.1,2538.0,0.2744865]
[1751937528672,21.45044137,2538.1,2538.0,0.2744865]
[1751937528879,20.05282394,2538.1,2538.0,0.2744865]
[1751937530145,21.44729689,2538.1,2538.0,0.2744865]
[1751937532042,20.05282394,2538.1,2538.0,0.2744865]
[1751937533473,20.05240653,2538.1,2538.0,0.2744865]
[1751937533983,17.43840653,2538.1,2538.0,0.2744865]
[1751937534271,19.50340653,2538.1,2538.0,0.2744865]
[1751937534648,18.90240653,2538.1,2538.0,0.2744865]
[1751937534957,14.90386719,2538.1,2538.0,0.2744865]
[1751937535474,16.42246719,2538.1,2538.0,0.2744865]
[1751937536651,21.63505756,2538.1,2538.0,0.2744865]
[1751937537678,21.63506911,2538.1,2538.0,0.2744865]
[1751937541576,23.03044433,2538.1,2538.0,0.2744865]
[1751937541780,23.58044433,2538.1,2538.0,0.2744865]
[1751937544479,25.3236475,2538.1,2538.0,0.2744865]
[1751937545608,23.58044433,2538.1,2538.0,0.2744865]
[1751937546026,23.58245069,2538.1,2538.0,0.2744865]
[1751937546173,25.91180586,2538.1,2538.0,0.2744865]
[1751937547100,23.58245069,2538.1,2538.0,0.2744865]
[1751937548798,23.58245069,2538.1,2538.0,1e-08]
[1751937549179,23.58145069,2538.1,2538.0,1e-08]
[1751937549791,25.91111305,2538.1,2538.0,1e-08]
[1751937550122,18.68786032,2538.1,2538.0,1e-08]
[1751937550415,19.83886032,2538.1,2538.0,1e-08]
[1751937550936,20.98559227,2538.1,2538.0,1e-08]
[1751937551135,4.97703719,2538.1,2538.0,1e-08]
[1751937551419,13.83030524,2538.1,2538.0,1e-08]
[1751937552118,17.77026032,2538.1,2538.0,1e-08]
[1751937552690,19.94116032,2538.1,2538.0,1e-08]
[1751937553613,14.68691032,2538.0,2537.9,0.002]
[1751937553812,18.06811556,2538.0,2537.9,0.002]
[1751937553987,19.45449225,2538.0,2537.9,0.002]
[1751937554193,19.819076,2538.0,2537.9,0.002]
[1751937554389,18.06977565,2538.0,2537.9,0.002]
[1751937555000,20.40273664,2538.0,2537.9,0.002]
[1751937555205,20.40263786,2538.0,2537.9,0.002]
[1751937555789,13.94042083,2537.8,2537.7,0.0428563]
[1751937556118,18.05297466,2537.8,2537.7,0.0428563]
[1751937558221,19.52197466,2537.8,2537.7,0.0428563]
[1751937560609,20.07197466,2537.8,2537.7,0.0428563]
[1751937560802,21.63447466,2537.8,2537.7,0.0428563]
[1751937562010,19.88488616,2537.8,2537.7,0.0428563]
[1751937562331,22.21774837,2537.8,2537.7,0.0428563]
[1751937563598,22.21774837,2537.8,2537.3,0.002]
[1751937563599,5.53414201,2537.4,2537.3,0.002]
[1751937563818,17.94637036,2537.4,2537.3,0.002]
[1751937564017,17.89710734,2537.4,2537.3,0.002]
[1751937565303,18.44710734,2537.4,2537.3,0.002]
[1751937566317,16.85400734,2537.4,2537.3,0.002]
[1751937567623,18.60235105,2537.4,2537.3,0.002]
[1751937568637,20.21715105,2537.4,2537.3,0.002]
[1751937568952,14.68799733,2537.3,2537.2,0.0428563]
[1751937569159,16.44996266,2537.3,2537.2,0.0428563]
[1751937570453,23.25835303,2537.3,2537.2,0.0428563]
[1751937571147,25.00842918,2537.3,2537.2,0.0428563]
[1751937571353,23.25835303,2537.3,2537.2,0.0428563]
[1751937572063,18.04576266,2537.3,2537.2,0.0428563]
[1751937572430,20.11676266,2537.3,2537.2,0.0428563]
[1751937573161,21.86683881,2537.3,2537.2,0.0428563]
[1751937573453,20.11676266,2537.3,2537.2,0.0428563]
[1751937573857,3.94197414,2536.8,2536.7,0.0428563]
[1751937574067,6.35527416,2536.8,2536.7,0.0428563]
[1751937574232,8.06144561,2536.8,2536.7,0.0428563]
[1751937574432,8.01217094,2536.8,2536.7,0.0428563]
[1751937574672,8.01195793,2536.8,2536.7,0.0428563]
[1751937574868,18.01195793,2536.8,2536.7,0.0428563]
[1751937575456,16.61251633,2536.8,2536.7,0.0428563]
[1751937575862,18.01119094,2536.8,2536.7,0.0428563]
[1751937576462,16.61251633,2536.8,2536.7,0.0428563]
[1751937576670,14.13954219,2536.8,2536.7,0.0428563]
[1751937576829,13.77517145,2536.8,2536.7,0.0428563]
[1751937577030,14.1395107,2536.8,2536.7,0.0428563]
[1751937577231,18.08148484,2536.8,2536.7,0.0428563]
[1751937577432,18.0814472,2536.8,2536.7,0.0428563]
[1751937577741,17.71714559,2536.8,2536.7,0.0428563]
[1751937578134,13.77517145,2536.8,2536.7,0.0428563]
[1751937578560,17.71714559,2536.8,2536.7,0.0428563]
[1751937578944,13.77517145,2536.8,2536.7,0.0428563]
[1751937579341,11.70617145,2536.8,2536.7,0.0428563]
[1751937579664,13.77517145,2536.8,2536.7,0.0428563]
[1751937581162,14.13939636,2536.8,2536.7,0.0428563]
[1751937584389,10.36422491,2536.8,2536.7,0.0428563]
[1751937584691,10.96422491,2536.8,2536.7,0.0428563]
[1751937586747,10.36422491,2536.8,2536.7,0.0428563]
[1751937586946,10.96422491,2536.8,2536.7,0.0428563]
[1751937587675,0.96422491,2536.8,2536.7,0.0428563]
[1751937587880,0.36422491,2536.8,2536.7,1.3139563]
[1751937588059,0.56102491,2536.8,2536.7,1.3139563]
[1751937588258,1.16102491,2536.8,2536.7,1.3139563]
[1751937589274,0.56102491,2536.8,2536.7,1.3139563]
[1751937589449,1.16102491,2536.8,2536.7,1.3139563]
[1751937590871,0.56102491,2536.8,2536.7,1.3139563]
[1751937591267,0.36422491,2536.8,2536.7,5.25608583]
[1751937591581,0.6,2537.0,2536.8,1.3907]
[1751937591782,0.36489834,2536.9,2536.8,1.3907]
[1751937592281,0.36489834,2536.9,2536.8,0.53977806]
[1751937592489,0.36489834,2536.9,2536.8,4.4817522]
[1751937592657,0.6,2537.1,2536.8,0.53977806]
[1751937592862,0.36492778,2537.0,2536.9,1.3826]
[1751937593285,0.36492778,2537.1,2536.9,1.3826]
[1751937593469,0.36492778,2537.0,2536.9,5.86117715]
[1751937593791,0.6,2537.2,2536.9,5.86117715]
[1751937593792,0.6,2537.2,2537.0,1.406]
[1751937593955,0.364916,2537.1,2537.0,1.406]
[1751937594156,0.6,2537.2,2537.0,1.406]
[1751937594496,0.364916,2537.1,2537.0,5.34766338]